Cogmind - Beta 16 @@@ ROGUE MODE // 2026.03.06 @ 06:32:47 Player: GermanMO Result: Destroyed by G-67 Veteran with Plasma Rifle Performance ------------- Evolutions (7) 3500 Regions Visited (12) 2400 Robots Destroyed (52) 260 Value Destroyed (2233) 2233 Prototype IDs (61) 1220 Alien Tech Used (2) 400 Bonus (1140) 1140 TOTAL SCORE: 11153 Bonus ------- Follower Combat Kills 65 Registered with UFD 300 Met Optimus in HQ 500 Met Zhirov 300 Friendly Fire -25 Cogmind --------- Core Integrity 0/1300 Matter 29/300 Energy 99/100 System Corruption 3% Temperature Cool (46) Movement Core (50) Location -3/Research Parts ------- > --- POWER (2) -------- (None) > --- PROPULSION (4) --- (None) > --- UTILITY (11) ----- Experimental Signal Interpreter A0-MCA's Component Scanner > --- WEAPON (4) ------- (None) > --- INVENTORY (5) ---- Particle Reactor Advanced Sensor Array Fusion Bomb Launcher Peak State ------------ > --- POWER ------------ Neutrino Core > --- PROPULSION ------- Arachnoskeleton Myomer Leg > --- UTILITY ---------- Compact Battery Improved Sensor Array Improved Signal Interpreter 0b10 Decoder Chip [Looter] Advanced Targeting Computer Improved Shield Generator A0-MCA's Component Scanner Thief Drone Bay > --- WEAPON ----------- Hardcell Cannon Hardcell Cannon Hardcell Cannon Power Maul > --- INVENTORY -------- Neutrino Core Core Analyzer Barrage Gun Barrage Gun Barrage Gun [Rating: 97] Favorites ----------- Power Neutrino Core Engine Ion Engine Power Core Neutrino Core Reactor Particle Reactor Propulsion Wheel Leg Arachnoskeleton Wheel Wheel Hover Unit Gravmag Array Utility A0-MCA's Component Scanner Device Thief Drone Bay Storage Compact Battery Processor A0-MCA's Component Scanner Protection Backup Plating I Weapon Magnetic Acceleration Cannon Energy Gun Heavy Riot Gun Energy Cannon Advanced Plasma Cannon Ballistic Gun Barrage Gun Ballistic Cannon Magnetic Acceleration Cannon Launcher Subdweller Shrapnel Launcher Special Weapon Mining Laser Impact Weapon Power Maul Slashing Weapon Makeshift Sword Build | -11 -10 -10 -10 -7 -5 -5 -5 -5 -4 -4 -4 -3 ------- Run | Yrd Mat Min Sub Scr Fac Upp Upp Zhi Pro Fac Arm Res Slots Evolved 14 | . . . . . 10 . . . . 2 . 2 Power 1 | . . . . . 1 . . . . . . . Propulsion 2 | . . . . . 1 . . . . . . 1 Utility 9 | . . . . . 6 . . . . 2 . 1 Weapon 2 | . . . . . 2 . . . . . . . Parts Attached 57 | 7 1 4 3 4 10 4 1 . 3 8 8 4 Power 6 | 1 . . . . 2 . . . . 1 1 1 Engine 2 | 1 . . . . . . . . . . 1 . Core 3 | . . . . . 2 . . . . 1 . . Reactor 1 | . . . . . . . . . . . . 1 Propulsion 6 | 2 . . . . 1 . . . 1 . 1 1 Treads . | . . . . . . . . . . . . . Leg 2 | . . . . . 1 . . . 1 . . . Wheel 2 | 2 . . . . . . . . . . . . Hover 2 | . . . . . . . . . . . 1 1 Flight . | . . . . . . . . . . . . . Utility 24 | 2 . 3 1 1 5 2 1 . 1 4 2 2 Device 14 | 2 . 2 1 . 4 . . . 1 3 . 1 Storage 1 | . . . . . . 1 . . . . . . Processor 8 | . . 1 . 1 1 1 1 . . 1 1 1 Hackware . | . . . . . . . . . . . . . Protection 1 | . . . . . . . . . . . 1 . Artifact . | . . . . . . . . . . . . . Weapon 21 | 2 1 1 2 3 2 2 . . 1 3 4 . Energy Gun 3 | 1 . . 1 1 . . . . . . . . Energy Cannon 1 | . . . . . 1 . . . . . . . Ballistic Gun 4 | 1 . . . . . 1 . . . . 2 . Ballistic Cannon 4 | . . . . . 1 . . . . 3 . . Launcher 5 | . . 1 1 1 . . . . . . 2 . Special Weapon 1 | . 1 . . . . . . . . . . . Impact Weapon 2 | . . . . 1 . . . . 1 . . . Slashing Weapon 1 | . . . . . . 1 . . . . . . Piercing Weapon . | . . . . . . . . . . . . . Special Melee Weapon . | . . . . . . . . . . . . . Unidentified Prototypes 3 | . . 1 . . . . . 2 . . . . Parts Lost 36 | . . . 2 . 3 3 . . 3 9 11 5 Power 4 | . . . . . . 1 . . . 2 1 . Propulsion 6 | . . . . . 1 1 . . . 1 1 2 Utility 12 | . . . . . . 1 . . 1 5 4 1 Weapon 14 | . . . 2 . 2 . . . 2 1 5 2 Highest Loss Streak 6 | . . . 1 . 3 2 . . 2 4 6 2 To Critical Strikes 1 | . . . . . 1 . . . . . . . Average Backups 3 | . 4 4 4 2 1 3 5 5 4 4 2 1 Power . | . . . . . . 1 1 1 1 . . . Propulsion . | . 1 1 1 1 . 1 . . . . . . Utility 1 | . 1 2 2 1 . . 1 2 1 1 . . Weapon 1 | . 1 1 . . 1 . 2 2 2 2 1 1 Tool/Special . | . . . . . . . . . . . . . Unused Backups 5 | . . . 2 . . 1 1 . . . . 1 Power . | . . . . . . . . . . . . . Propulsion 3 | . . . 1 . . 1 1 . . . . . Utility 2 | . . . 1 . . . . . . . . 1 Weapon . | . . . . . . . . . . . . . Tool/Special . | . . . . . . . . . . . . . Average Slot Usage (%) 81 | . 100 100 97 99 62 75 76 73 78 64 53 28 Engine 5 | . 14 14 14 14 2 . . . . . . . Core 3 | . . . . . 6 10 5 5 5 3 . . Leg 3 | . . . . . 4 5 5 5 10 6 1 . Wheel 11 | . 28 28 28 28 6 . . . . . . . Device 16 | . 28 14 14 14 22 24 16 16 15 15 5 1 Storage 2 | . . . . . . 4 5 1 5 2 . . Processor 15 | . . 13 14 14 7 11 21 22 22 17 25 18 Energy Gun 4 | . 14 14 6 13 1 . . . . . . . Ballistic Gun 1 | . 3 . . . . 1 5 5 5 1 4 . Ballistic Cannon 3 | . . . . . 4 5 5 5 3 11 2 . Launcher 6 | . . 13 14 10 1 4 5 5 3 . 3 . Special Weapon 1 | . 10 . 4 . . . . . . . . . Impact Weapon 1 | . . . . 3 . . . . 2 5 5 1 Slashing Weapon 1 | . . . . . . 1 5 5 2 . . . Peak Build Rating 97 | 9 9 13 16 24 80 82 81 81 88 97 78 78 Average Rating 51 | 4 9 10 12 16 69 80 80 79 84 81 58 42 On Entrance 44 | . 9 9 13 13 24 80 78 81 81 79 75 42 Avg Prop Armor Cover (%) 3 | . . . . . 3 3 . . . . . . Naked Turns . | . . . . . . . . . . . . . Heaviest Build 59 | 11 11 14 18 17 51 59 45 45 46 57 31 22 Greatest Support 75 | 20 20 20 20 20 50 50 50 50 75 75 50 40 Greatest Overweight (x) 2 | . . . . . 1 1 . . . 1 2 . Average Overweight (x) . | . . . . . . . . . . . . . Largest Inventory Capacity 5 | 5 5 5 5 5 5 5 5 5 5 5 5 5 Average Capacity 5 | 5 5 5 5 5 5 5 5 5 5 5 5 5 Most Carried 5 | 3 5 5 5 5 5 5 5 5 5 5 4 3 Average Carried 4 | . 4 4 4 4 1 3 4 5 4 4 2 1 Final Capacity 5 | 5 5 5 5 5 5 5 5 5 5 5 5 5 Final Carried 5 | 3 5 5 5 5 2 5 5 5 4 4 3 3 Class Distribution -------------------- 47% | Mutant 19% | Derelict-Skirmisher 15% | Bomber 5% | Derelict-Mutant 5% | Skirmisher 4% | Derelict-Bomber Dominant Class ---------------- Scavenger-Mutant | -10/Materials Mutant | -10/Mines Mutant | -10/Subcaves Mutant | -7/Scraptown Mutant | -5/Factory Bomber | -5/Upper Caves Derelict-Skirmisher | -5/Upper Caves Derelict-Skirmisher | -5/Zhirov Derelict-Skirmisher | -4/Proximity Caves Skirmisher | -4/Factory Derelict-Mutant | -4/Armory Mutant | -3/Research Resources | -11 -10 -10 -10 -7 -5 -5 -5 -5 -4 -4 -4 -3 ----------- Run | Yrd Mat Min Sub Scr Fac Upp Upp Zhi Pro Fac Arm Res Matter Collected 2133 | 306 . 80 225 90 80 525 180 . 296 41 310 . Remotely . | . . . . . . . . . . . . . Salvage Created 1560 | 214 . 87 294 . 78 452 45 . 278 11 101 . Parts 70 | 9 . 5 22 . 3 13 3 . 11 . 4 . Haulers Intercepted . | . . . . . . . . . . . . . Recyclers Shooed . | . . . . . . . . . . . . . Parts Field Recycled . | . . . . . . . . . . . . . Retrieved Matter . | . . . . . . . . . . . . . Parts Self-Destructed 32 | . . . 3 . . 14 3 . 12 . . . Prevented 2 | . . . . . . 1 . . 1 . . . Parts Restored . | . . . . . . . . . . . . . Kills | -11 -10 -10 -10 -7 -5 -5 -5 -5 -4 -4 -4 -3 ------- Run | Yrd Mat Min Sub Scr Fac Upp Upp Zhi Pro Fac Arm Res Combat Hostiles Destroyed 44 | . . 2 12 . 3 14 1 . 7 1 4 . Guns 8 | . . 1 2 . . 1 1 . 2 . 1 . Cannons 10 | . . . . . 3 5 . . 1 1 . . AOE 26 | . . 1 10 . . 8 . . 4 . 3 . Classes Destroyed 16 | 3 . 1 3 . 1 3 1 . 2 . 2 . Worker 1 | 1 . . . . . . . . . . . . Tunneler 4 | 4 . . . . . . . . . . . . Recycler 1 | 1 . . . . . . . . . . . . Drone 1 | . . . . . . . . . 1 . . . Turret 2 | . . . 2 . . . . . . . . . Swarmer 9 | . . . 4 . 2 3 . . . . . . Saboteur 1 | . . . . . . . . . . . 1 . Grunt 9 | . . . . . . 6 . . 1 1 1 . Brawler 4 | . . . . . . 4 . . . . . . Duelist 1 | . . . . . 1 . . . . . . . Sentry 4 | . . 2 . . . 1 . . 1 . . . Specialist 2 | . . . . . . . . . . . 2 . Hunter 2 | . . . . . . . . . 2 . . . Programmer 3 | . . . . . . . 1 . 2 . . . Subdweller 8 | . . . 8 . . . . . . . . . Samaritan 1 | . . . . . . 1 . . . . . . Best Kill Streak 5 | 5 . 2 4 . 3 4 1 . 3 1 3 . Combat Bots Only 4 | . . 2 4 . 3 4 1 . 3 1 3 . Max Kills in Single Turn 3 | 2 . 1 3 . 1 2 1 . 2 1 1 . Gunslinging . | . . . . . . . . . . . . . Exploded 3 | . . 1 3 . . 2 . . 2 . 1 . Melee . | . . . . . . . . . . . . . Uniques/NPCs Destroyed . | . . . . . . . . . . . . . Combat | -11 -10 -10 -10 -7 -5 -5 -5 -5 -4 -4 -4 -3 -------- Run | Yrd Mat Min Sub Scr Fac Upp Upp Zhi Pro Fac Arm Res Hostile Shots Fired 391 | . 9 2 14 . 22 47 11 . 28 58 54 146 Missed 141 | . 5 1 5 . 2 20 5 . 7 13 17 66 Hits 250 | . 4 1 9 . 20 27 6 . 21 45 37 80 Melee 9 | . . . . . 7 1 . . . . 1 . Projectile 241 | . 4 1 9 . 13 26 6 . 21 45 36 80 Critical Strikes 16 | . . . . . 3 2 1 . . 2 3 5 Part Disruptions 1 | . . . . . . . . . . . . 1 Damage Taken 5729 | . 49 15 246 . 424 415 87 . 381 1139 1229 1744 Core 1951 | . 15 15 43 . 88 30 14 . 55 136 252 1303 Absorbed by Shields 577 | . . . . . . 157 32 . 140 240 8 . Ignored by Resistances 37 | . . . . . . 37 . . . . . . Core Remaining (%) 77 | 100 . . . 70 . . . . 73 . 66 . Volleys Fired 177 | 12 2 4 52 . 8 27 10 . 23 9 30 . Largest 3 | 2 1 1 2 . 3 3 2 . 3 3 3 . Hottest 197 | 60 100 40 100 . 197 182 72 . 112 165 132 . Shots Fired 268 | 24 2 4 60 . 14 47 13 1 32 20 51 . Gun 103 | 24 . 2 16 . 2 2 3 . 15 . 39 . Cannon 83 | . . . . . 12 27 10 1 7 20 6 . Launcher 58 | . . 2 22 . . 18 . . 10 . 6 . Special 24 | . 2 . 22 . . . . . . . . . Kinetic 171 | 12 . . 1 . 8 39 13 1 32 20 45 . Thermal 36 | . 2 . 22 . 4 8 . . . . . . Explosive 29 | . . 2 21 . . . . . . . 6 . Electromagnetic 32 | 12 . 2 16 . 2 . . . . . . . Robot Hit Streak 19 | 10 . 1 19 . 3 9 1 2 7 5 11 . Robot Miss Streak 7 | 2 . 1 1 . 2 2 2 . 7 1 3 . Penetration Max . | . . . . . . . . . . . . . Secondary Targets . | . . . . . . . . . . . . . Shots Hit Robots 131 | 16 . 1 24 . 9 25 2 1 14 8 31 . Core Hits 125 | 6 . 4 27 . 4 40 2 . 20 2 19 1 Critical Kills . | . . . . . . . . . . . . . Critical Parts Destroyed . | . . . . . . . . . . . . . Critical Strikes 4 | . . . . . . 3 . . . . 1 . Blast 4 | . . . . . . 3 . . . . 1 . Melee Attacks 24 | . . . . 6 . . . . . 15 2 1 Impact 24 | . . . . 6 . . . . . 15 2 1 Slashing . | . . . . . . . . . . . . . Piercing . | . . . . . . . . . . . . . Sneak Attacks . | . . . . . . . . . . . . . Combat Hostiles . | . . . . . . . . . . . . . Follow-up Attacks . | . . . . . . . . . . . . . Damage Inflicted 6429 | 221 . 57 1216 . 278 2344 55 35 714 267 1233 9 Guns 1012 | 221 . 11 114 . 36 35 17 . 131 . 447 . Cannons 1357 | . . . . . 242 544 38 35 34 267 197 . Explosions 4051 | . . 46 1102 . . 1765 . . 549 . 589 . Melee . | . . . . . . . . . . . . . Ramming 9 | . . . . . . . . . . . . 9 Kinetic 4097 | 81 . . . . 208 2093 55 35 714 267 644 . Thermal 285 | . . . . . 34 251 . . . . . . Explosive 1737 | . . 46 1102 . . . . . . . 589 . Electromagnetic 301 | 140 . 11 114 . 36 . . . . . . . Impact . | . . . . . . . . . . . . . Slashing . | . . . . . . . . . . . . . Piercing . | . . . . . . . . . . . . . Highest Corruption 3 | . . . . . . . 2 2 2 1 3 3 Average Corruption 1 | . . . . . . . 1 2 2 1 2 2 Corruption Purged . | . . . . . . . . . . . . . Corruption Blocked . | . . . . . . . . . . . . . Effects 26 | . . . . . . . 7 1 9 4 3 2 Message Errors 7 | . . . . . . . 1 . 3 2 . 1 Matter Fused 4 | . . . . . . . 2 . 2 . . . Heat Flow Errors 2 | . . . . . . . 1 . . . 1 . Energy Discharges 4 | . . . . . . . . . 2 . 1 1 Parts Rejected 1 | . . . . . . . . . 1 . . . Parts Fused 1 | . . . . . . . 1 . . . . . Data Loss (minor) 5 | . . . . . . . 2 . 1 1 1 . Misfires 2 | . . . . . . . . 1 . 1 . . Overload Shots . | . . . . . . . . . . . . . Overflow Damage 135 | . . . 12 . . 17 . 30 13 63 . . Projectiles 61 | . . . . . . 8 . 30 . 23 . . Explosions 74 | . . . 12 . . 9 . . 13 40 . . Melee . | . . . . . . . . . . . . . Knockbacks 8 | . . . . . 3 2 1 . . 2 . . Impact . | . . . . . . . . . . . . . Kinetic 8 | . . . . . 3 2 1 . . 2 . . Secondary . | . . . . . . . . . . . . . Self-Inflicted Damage 502 | . . . 27 . . 46 . . 54 371 . 4 Shots 15 | . . . 4 . . 2 . . 4 5 . . Rammed 4 | . . . . . . . . . . . . 4 Targets Rammed 4 | . . . . . . . . . . . . 4 Kicked . | . . . . . . . . . . . . . Crushed . | . . . . . . . . . . . . . Highest Temperature 395 | 20 40 . 10 . 149 395 102 . 15 84 143 5 Average Temperature 79 | 20 22 . 6 . 84 145 25 . 6 32 37 5 Received Heat Transfer 585 | . 30 . 18 . . 74 . . . 176 114 173 Effects 2 | . . . . . . 2 . . . . . . Shutdowns 1 | . . . . . . 1 . . . . . . Short Circuit 1 | . . . . . . 1 . . . . . . Siege Activations . | . . . . . . . . . . . . . Martial Activations . | . . . . . . . . . . . . . Shielding Activations . | . . . . . . . . . . . . . Robots Disrupted . | . . . . . . . . . . . . . Combat Hostiles . | . . . . . . . . . . . . . Robots Corrupted . | . . . . . . . . . . . . . Combat Hostiles . | . . . . . . . . . . . . . Parts Fried 2 | 2 . . . . . . . . . . . . Impact Corruptions . | . . . . . . . . . . . . . Robots Melted . | . . . . . . . . . . . . . Combat Hostiles . | . . . . . . . . . . . . . Parts Melted . | . . . . . . . . . . . . . Heat Transferred 400 | . . . . . 50 350 . . . . . . Parts Sabotaged 2 | . . . . . . . . . . . 2 . Parts Stolen . | . . . . . . . . . . . . . Parts Stripped . | . . . . . . . . . . . . . Power Chain Reactions . | . . . . . . . . . . . . . Alert | -11 -10 -10 -10 -7 -5 -5 -5 -5 -4 -4 -4 -3 ------- Run | Yrd Mat Min Sub Scr Fac Upp Upp Zhi Pro Fac Arm Res Maximum Alert Level 1 | . . . . . . . . . . 1 1 . Low Security (%) 97 | 100 100 100 . . 100 . . . . 94 94 100 Level 1 2 | . . . . . . . . . . 5 5 . Level 2 . | . . . . . . . . . . . . . Level 3 . | . . . . . . . . . . . . . Level 4 . | . . . . . . . . . . . . . Level 5 . | . . . . . . . . . . . . . High Security . | . . . . . . . . . . . . . Max Security . | . . . . . . . . . . . . . Peak Influence 234 | 15 15 44 . . 62 . . . . 234 218 101 Initial 150 | . 3 . . . . . . . . 150 14 101 Average 48 | 2 6 5 . . 9 . . . . 130 54 60 Influence Increases 2054 | 30 15 106 396 . 68 390 30 . 165 382 320 152 Destroy 0b10 Robot/C 780 | . . 80 120 . 60 280 20 . 120 20 80 . Destroy 0b10 Robot/NC 40 | 30 . . . . . . . . 10 . . . Destroy Leader 80 | . . 10 . . . 20 10 . 20 . 20 . Allied During Kill 12 | . . 6 6 . . . . . . . . . Successful Hack 2 | . . . . . . . . . . 2 . . Disable Machine 165 | . 15 . . . . . . . . 90 60 . Destroy Structure 270 | . . 10 . . 8 . . . . 120 130 2 Advance Influence 150 | . . . . . . . . . . 150 . . Lose Combat Pursuer 555 | . . . 270 . . 90 . . 15 . 30 150 Influence Decreases 1961 | 25 20 106 396 . 68 271 149 . 165 352 157 252 Entered New Map 133 | . 2 . . . . . 23 . . . 16 92 Time Decay 1553 | 25 18 86 376 . 64 241 126 . 145 262 100 110 Lost Part 255 | . . . 20 . 4 30 . . 20 90 41 50 Lost Ally 20 | . . 20 . . . . . . . . . . Squads Dispatched 6 | . . . . . 1 . . . . 1 1 3 Investigation . | . . . . . . . . . . . . . Extermination 2 | . . . . . 1 . . . . 1 . . Reinforcement 4 | . . . . . . . . . . . 1 3 Assault . | . . . . . . . . . . . . . Garrison . | . . . . . . . . . . . . . Intercept . | . . . . . . . . . . . . . Searches Triggered . | . . . . . . . . . . . . . Construction Impeded . | . . . . . . . . . . . . . Haulers Reinforced . | . . . . . . . . . . . . . Active Scanning Responses . | . . . . . . . . . . . . . Cargo Convoy Interrupts . | . . . . . . . . . . . . . Stealth | -11 -10 -10 -10 -7 -5 -5 -5 -5 -4 -4 -4 -3 --------- Run | Yrd Mat Min Sub Scr Fac Upp Upp Zhi Pro Fac Arm Res Distress Signals 4 | . . . . . . 1 . . . . 2 1 Communications Jammed 1 | . . . . . . . . . . . . 1 Distress Signals 1 | . . . . . . . . . . . . 1 Times Spotted 119 | . 3 3 25 . 3 23 4 . 9 8 19 22 Peak Tracking Total 13 | . 4 2 4 . 3 11 3 . 3 6 7 13 Tactical Retreats 10 | . . . 1 . . 2 . . 1 . 2 4 Traps | -11 -10 -10 -10 -7 -5 -5 -5 -5 -4 -4 -4 -3 ------- Run | Yrd Mat Min Sub Scr Fac Upp Upp Zhi Pro Fac Arm Res Traps Triggered 6 | . . . 1 . 1 . . . . 1 2 1 Indirectly . | . . . . . . . . . . . . . Trap Hack Attempts . | . . . . . . . . . . . . . Triggered . | . . . . . . . . . . . . . Disarmed . | . . . . . . . . . . . . . Reprogrammed . | . . . . . . . . . . . . . Reused . | . . . . . . . . . . . . . Traps Extracted . | . . . . . . . . . . . . . Installed . | . . . . . . . . . . . . . Triggered . | . . . . . . . . . . . . . Machines | -11 -10 -10 -10 -7 -5 -5 -5 -5 -4 -4 -4 -3 ---------- Run | Yrd Mat Min Sub Scr Fac Upp Upp Zhi Pro Fac Arm Res Machines Disabled 17 | . 1 . 6 . . . . . . 6 4 . Max in Single Turn 5 | . 1 . 2 . . . . . . 5 3 . Machines Repaired . | . . . . . . . . . . . . . Machines Dismantled . | . . . . . . . . . . . . . Machines Sabotaged . | . . . . . . . . . . . . . Overloaded Fab Kills . | . . . . . . . . . . . . . Hacking | -11 -10 -10 -10 -7 -5 -5 -5 -5 -4 -4 -4 -3 --------- Run | Yrd Mat Min Sub Scr Fac Upp Upp Zhi Pro Fac Arm Res Machines Accessed 19 | . 1 1 2 4 . . . 8 1 2 . . Terminals 2 | . 1 . . . . . . . 1 . . . Fabricators . | . . . . . . . . . . . . . Repair Stations . | . . . . . . . . . . . . . Recycling Units . | . . . . . . . . . . . . . Scanalyzers 2 | . . . . . . . . . . 2 . . Garrison Access . | . . . . . . . . . . . . . Total Hacks 62 | . 3 1 12 19 . . . 23 1 3 . . Successful 59 | . 1 1 12 19 . . . 23 1 2 . . Failed 3 | . 2 . . . . . . . . 1 . . Catastrophic 2 | . 2 . . . . . . . . . . . Database Lockouts . | . . . . . . . . . . . . . Manual 2 | . 2 . . . . . . . . . . . Terminals 4 | . 3 . . . . . . . 1 . . . Fabricators . | . . . . . . . . . . . . . Repair Stations . | . . . . . . . . . . . . . Recycling Units . | . . . . . . . . . . . . . Scanalyzers 3 | . . . . . . . . . . 3 . . Garrison Access . | . . . . . . . . . . . . . Terminal Hacks 57 | . 1 1 12 19 . . . 23 1 . . . Record 37 | . 1 . 11 13 . . . 11 1 . . . Part Schematic 4 | . . . . . . . . 4 . . . . Robot Analysis 10 | . . . . 6 . . . 4 . . . . Prototype ID Bank 4 | . . . . . . . . 4 . . . . Open Door 1 | . . 1 . . . . . . . . . . Proto ID Catalog 1 | . . . 1 . . . . . . . . . Fabricator Hacks . | . . . . . . . . . . . . . Repair Station Hacks . | . . . . . . . . . . . . . Recycling Unit Hacks . | . . . . . . . . . . . . . Scanalyzer 2 | . . . . . . . . . . 2 . . Retrieve Study 2 | . . . . . . . . . . 2 . . Garrison Access Hacks . | . . . . . . . . . . . . . Unauthorized Hacks . | . . . . . . . . . . . . . Terminals . | . . . . . . . . . . . . . Fabricators . | . . . . . . . . . . . . . Repair Stations . | . . . . . . . . . . . . . Recycling Units . | . . . . . . . . . . . . . Scanalyzers . | . . . . . . . . . . . . . Garrison Access . | . . . . . . . . . . . . . Data Cores Recovered . | . . . . . . . . . . . . . Used . | . . . . . . . . . . . . . Hacking Detections 3 | . 1 . . . . . . . 1 1 . . Full Trace Events 1 | . 1 . . . . . . . . . . . Feedback Events . | . . . . . . . . . . . . . Feedback Blocked . | . . . . . . . . . . . . . Robot Schematics Acquired . | . . . . . . . . . . . . . Robots Built . | . . . . . . . . . . . . . Authchips . | . . . . . . . . . . . . . Time . | . . . . . . . . . . . . . Total Robot Build Rating . | . . . . . . . . . . . . . Part Schematics Acquired 4 | . . . . . . . . 4 . . . . Parts Built . | . . . . . . . . . . . . . Authchips . | . . . . . . . . . . . . . Time . | . . . . . . . . . . . . . Total Part Build Rating . | . . . . . . . . . . . . . Part Studies Acquired 2 | . . . . . . . . . . 2 . . Parts Repaired . | . . . . . . . . . . . . . Time . | . . . . . . . . . . . . . Parts Recycled . | . . . . . . . . . . . . . Recycled Matter . | . . . . . . . . . . . . . Retrieved Matter . | . . . . . . . . . . . . . Retrieved Components . | . . . . . . . . . . . . . Parts Scanalyzed . | . . . . . . . . . . . . . Part Schematics Acquired . | . . . . . . . . . . . . . Parts Damaged . | . . . . . . . . . . . . . Bothacking | -11 -10 -10 -10 -7 -5 -5 -5 -5 -4 -4 -4 -3 ------------ Run | Yrd Mat Min Sub Scr Fac Upp Upp Zhi Pro Fac Arm Res Used RIF Installer . | . . . . . . . . . . . . . Robots Hacked . | . . . . . . . . . . . . . Non-combat . | . . . . . . . . . . . . . Combat . | . . . . . . . . . . . . . Robot Hacks Applied . | . . . . . . . . . . . . . Relay Couplers Released . | . . . . . . . . . . . . . Fabnet Peak Effective % . | . . . . . . . . . . . . . Robots Rewired . | . . . . . . . . . . . . . Allies Hacked . | . . . . . . . . . . . . . Hacks Repelled . | . . . . . . . . . . . . . Allies | -11 -10 -10 -10 -7 -5 -5 -5 -5 -4 -4 -4 -3 -------- Run | Yrd Mat Min Sub Scr Fac Upp Upp Zhi Pro Fac Arm Res Total Allies 2 | . . 2 . . . . . . . . . . Largest Group 2 | . . 2 1 1 . . . . . . . . Highest-Rated Group 41 | . . 41 31 31 . . . . . . . . Highest-Rated Ally 31 | . . 31 31 31 . . . . . . . . Total Orders . | . . . . . . . . . . . . . Ally Attacks 56 | . . 6 27 . . . . . 23 . . . Total Damage 529 | . . 84 379 . . . . . 66 . . . Kills 4 | . . 2 1 . . . . . 1 . . . Allies Corrupted . | . . . . . . . . . . . . . Allies Melted . | . . . . . . . . . . . . . Intel | -11 -10 -10 -10 -7 -5 -5 -5 -5 -4 -4 -4 -3 ------- Run | Yrd Mat Min Sub Scr Fac Upp Upp Zhi Pro Fac Arm Res Active Infowar (turns) 6888 | 21 71 314 532 1203 428 1747 845 291 744 568 20 104 Optics 154 | . . . 154 . . . . . . . . . Sensors 4518 | . . . . . 415 1747 845 291 674 546 . . Terrain 120 | 17 71 32 . . . . . . . . . . Structural 2409 | . . 283 378 1203 428 117 . . . . . . Seismic 122 | 21 71 30 . . . . . . . . . . Decoding 2381 | . . . . . . 329 845 291 744 172 . . Cloaking 131 | . . . . . . . . . . 111 20 . Jamming 104 | . . . . . . . . . . . . 104 Robot Analysis Total 10 | . . . . 6 . . . 4 . . . . Derelict Logs Recovered 8 | . . 2 2 . . 1 2 . 1 . . . Drone Launches 4 | . . . . . . . . . 4 . . . Drone Recoveries 2 | . . . . . . . . . 2 . . . Decoded 0b10 Intel 12 | . . . . . . . . . . 12 . . Items 12 | . . . . . . . . . . 12 . . Exploration | -11 -10 -10 -10 -7 -5 -5 -5 -5 -4 -4 -4 -3 ------------- Run | Yrd Mat Min Sub Scr Fac Upp Upp Zhi Pro Fac Arm Res Turns Passed 8627 | 109 71 620 1480 1203 428 1747 845 291 744 568 300 221 Spaces Moved 7408 | 82 73 655 1491 1334 259 1026 624 311 554 389 229 381 Core 248 | 34 . . . . . . . . . . 8 206 Treads . | . . . . . . . . . . . . . Legs 3197 | . . . . . 243 1026 624 311 554 389 50 . Wheels 3617 | 48 73 655 1491 1334 16 . . . . . . . Hover 346 | . . . . . . . . . . . 171 175 Flight . | . . . . . . . . . . . . . Fastest Speed 50 | 50 80 80 80 80 80 90 90 90 90 90 60 50 Average Speed 93 | 67 80 80 80 80 121 137 90 90 103 119 78 53 Slowest Speed 180 | 80 80 80 80 80 180 180 90 90 105 180 150 60 Overloaded Moves . | . . . . . . . . . . . . . Propulsion Burnouts . | . . . . . . . . . . . . . Robots Hopped . | . . . . . . . . . . . . . Potential Cave-ins . | . . . . . . . . . . . . . Cave-ins Triggered . | . . . . . . . . . . . . . Teleports 1 | . . . . . . . . 1 . . . . Exploration Rate (%) 48 | 4 22 92 82 73 7 96 70 62 67 15 26 11 Regions Visited 12 Branch Regions 8 Pre-discovered Areas 5 | . . 1 1 . . . . 3 . . . . Known Exits Taken 8 | . . 1 1 1 . . 1 1 1 1 1 . Unknown Exits Taken 4 | 1 1 . . . 1 1 . . . . . . Scrap Searched 22 | . . 1 7 4 . 4 4 . 2 . . . Spaces Dug 63 | . . . 11 . . 4 5 . 17 24 1 1 Terrain Destroyed 627 | . . 18 86 . 4 214 6 . 107 67 124 1 Melee 17 | . . . . . . . . . . 15 1 1 Projectile 32 | . . . . . 4 7 6 . 3 11 1 . AOE 578 | . . 18 86 . . 207 . . 104 41 122 . Terrain Rammed . | . . . . . . . . . . . . . Walls Destroyed . | . . . . . . . . . . . . . Machines Disabled . | . . . . . . . . . . . . . Actions | -11 -10 -10 -10 -7 -5 -5 -5 -5 -4 -4 -4 -3 --------- Run | Yrd Mat Min Sub Scr Fac Upp Upp Zhi Pro Fac Arm Res Total 8778 | 107 79 746 1671 1460 357 1317 894 320 692 442 297 396 Wait 1030 | 4 . 80 115 98 75 247 258 . 111 21 21 . Move 7396 | 81 72 654 1490 1333 258 1025 623 310 553 388 228 381 Hop . | . . . . . . . . . . . . . Pick Up 20 | 3 3 . 3 2 . 6 1 . . . 1 1 Fast Attach 53 | 7 . 2 1 4 11 4 1 3 3 7 6 4 Attach 15 | . . 1 3 . 2 1 . . 1 1 4 2 Detach 11 | . . 1 1 1 1 2 . . . 1 1 3 Swap 5 | . 1 2 2 . . . . . . . . . Drop 22 | . 1 2 4 5 2 5 1 1 1 . . . Fire 177 | 12 2 4 52 . 8 27 10 . 23 9 30 . Melee 24 | . . . . 6 . . . . . 15 2 1 Ram 4 | . . . . . . . . . . . . 4 Kick . | . . . . . . . . . . . . . Crush . | . . . . . . . . . . . . . Escape Stasis 4 | . . . . . . . . . . . 4 . Rewire 17 | . . . . 11 . . . 6 . . . . Trap . | . . . . . . . . . . . . . Miscellaneous . | . . . . . . . . . . . . . Route ------- -11/Scrapyard -10/Materials -10/Mines (discovered 2 exits: *Mat / *Sub) -10/Subcaves (discovered 4 exits: *Mat x2 / *Rec / *Scr) -7/Scraptown (discovered 2 exits: *Fac x2) -5/Factory -5/Upper Caves -5/Upper Caves -5/Zhirov -4/Proximity Caves -4/Factory (discovered 2 exits: *Res / *Arm) -4/Armory -3/Research (discovered 1 exit: Res) History --------- Turn | Location | Event 3 | -11/Scrapyard | Discovered new exit (range 15) 110 | -11/Scrapyard | Entered Materials 174 | -10/Materials | Discovered new exit (range 8) 181 | -10/Materials | Entered Mines 374 | -10/Mines | Discovered new exit (range 11) 382 | -10/Mines | Identified exit to Materials 481 | -10/Mines | Found the Drone Emporium 496 | -10/Mines | Found Prototype Device 496 | -10/Mines | Identified Thief Drone Bay 517 | -10/Mines | Build established: Mutant 548 | -10/Mines | Learned Materials stockpile data 580 | -10/Mines | Discovered new exit (range 6) 584 | -10/Mines | Identified exit to Subcaves 672 | -10/Mines | Joined a pair of Derelicts in attacking an 0b10 outpost 801 | -10/Mines | Entered Subcaves 801 | -10/Subcaves | Accompanied by 1 ally 802 | -10/Subcaves | Approached by a straggling Scientist 806 | -10/Subcaves | Led the pair of lost Derelicts to an unsafe place 858 | -10/Subcaves | Discovered new exit (range 14) 884 | -10/Subcaves | Identified exit to Recycling 916 | -10/Subcaves | Disturbed a concealed Subdweller 987 | -10/Subcaves | Discovered new exit (range 12) 997 | -10/Subcaves | Identified exit to Materials 1354 | -10/Subcaves | Discovered exit to Materials (range 10) 1427 | -10/Subcaves | Visited Clippyterm 1430 | -10/Subcaves | Learned location of Section 7 (-2) 1442 | -10/Subcaves | Shifting Twisted Machinery released Hvy. Riot Gun 1454 | -10/Subcaves | Shifting Twisted Machinery released Spk. Treads 1456 | -10/Subcaves | A swath of the cavern ceiling suddenly collapsed 1495 | -10/Subcaves | Learned 2 Materials zone layouts 1513 | -10/Subcaves | A swath of the cavern ceiling suddenly collapsed 1603 | -10/Subcaves | Identified exit to Scraptown 1842 | -10/Subcaves | Disturbed a concealed Subdweller 2025 | -10/Subcaves | Visited 4L-MR0's lab 2110 | -10/Subcaves | Found Arachnoskeleton 2281 | -10/Subcaves | Entered Scraptown 2281 | -7/Scraptown | Accompanied by 1 ally 2311 | -7/Scraptown | Led the pair of lost Derelicts to a safe place 2340 | -7/Scraptown | Visited Awakened 2380 | -7/Scraptown | Visited UFD Registry 2380 | -7/Scraptown | Registered with UFD as "Macebank" 2449 | -7/Scraptown | Heard Great Nut preacher, LISTEN AND RECITE! 2504 | -7/Scraptown | Discovered new exit (range 11) 2530 | -7/Scraptown | Identified exit to Factory 2600 | -7/Scraptown | Visited Shadow of the Wyrm 2733 | -7/Scraptown | Visited Curators Association 2757 | -7/Scraptown | Visited Science Guys 2777 | -7/Scraptown | Visited DA-N13 Charitable Foundation 2787 | -7/Scraptown | Visited Analyses Database 2805 | -7/Scraptown | Visited Scrapoid Pod Storage 2825 | -7/Scraptown | Visited Scrap Suit Storage 2844 | -7/Scraptown | Visited Chapter 10 2858 | -7/Scraptown | Visited Abandonware Association 2866 | -7/Scraptown | Learned abandonware demo "REVENGE.EXE" 2867 | -7/Scraptown | Learned abandonware demo "OVRCLOCK.EXE" 3139 | -7/Scraptown | Visited A0-MCA Data Center 3144 | -7/Scraptown | Given a B- rating by A0-MCA 3148 | -7/Scraptown | Found A0-MCA's Component Scanner 3277 | -7/Scraptown | Discovered exit to Factory (range 5) 3349 | -7/Scraptown | Met Optimus 3349 | -7/Scraptown | Accepted into 0bPrime 3418 | -7/Scraptown | Found DCF Scrap (27 items) 3484 | -7/Scraptown | Entered Factory 3484 | -5/Factory | Evolved 10 slots: Power x1, Propulsion x1, Utility x6, Weapon x2 3500 | -5/Factory | Attached Arachnoskeleton, gained temporary slots: Propulsion x3 3615 | -5/Factory | Lost 3 parts (1n2w) 3698 | -5/Factory | Discovered new exit (range 12) 3912 | -5/Factory | Entered Upper Caves 4009 | -5/Upper Caves | Attracted the attention of an 0b10 checkpoint 4120 | -5/Upper Caves | Learned Factory machine intel 4304 | -5/Upper Caves | Build established: Bomber 5573 | -5/Upper Caves | Discovered new exit (range 15) 5624 | -5/Upper Caves | Attracted the attention of an 0b10 base 5636 | -5/Upper Caves | Build established: Derelict-Bomber 5659 | -5/Upper Caves | Entered another Upper Caves area 5980 | -5/Upper Caves | Build established: Derelict-Skirmisher 6017 | -5/Upper Caves | Learned Factory machine intel 6094 | -5/Upper Caves | Discovered new exit (range 11) 6295 | -5/Upper Caves | Learned location of 1 exit from Factory 6503 | -5/Upper Caves | Identified exit to Zhirov 6504 | -5/Upper Caves | Entered Zhirov 6504 | -5/Zhirov | Discovered new exit (range 3) 6505 | -5/Zhirov | Identified exit to Proximity Caves 6521 | -5/Zhirov | Met Zhirov 6550 | -5/Zhirov | Zhirov requested help retrieving the SGEMP Prototype 6610 | -5/Zhirov | Found Alien Artifact 6610 | -5/Zhirov | Identified Integrated Reactor 6610 | -5/Zhirov | Installed Integrated Reactor, increased core energy generation (+10) 6621 | -5/Zhirov | Found Alien Artifact 6621 | -5/Zhirov | Identified Transdimensional Reconstructor 6621 | -5/Zhirov | Warped through subspace 6717 | -5/Zhirov | Learned location of Quarantine (-2) 6717 | -5/Zhirov | Learned location of Testing (-3) 6717 | -5/Zhirov | Learned location of Command (-1) 6795 | -5/Zhirov | Entered Proximity Caves 6839 | -4/Proximity Caves | Attracted the attention of an 0b10 checkpoint 7172 | -4/Proximity Caves | Spotter reported a threat 7447 | -4/Proximity Caves | Discovered new exit (range 14) 7462 | -4/Proximity Caves | Identified exit to Factory 7498 | -4/Proximity Caves | Learned location of 1 exit from Research 7539 | -4/Proximity Caves | Entered Factory 7539 | -4/Factory | Evolved 2 slots: Utility x2 7540 | -4/Factory | Identified exit to Armory 7541 | -4/Factory | Loaded intel: 285 machine locations 7614 | -4/Factory | Build established: Derelict-Mutant 7742 | -4/Factory | Lost 4 parts (1p1n2u) 7805 | -4/Factory | Discovered new exit (range 10) 7813 | -4/Factory | Identified exit to Research 8011 | -4/Factory | Found Exp. Terrain Scan Processor 8039 | -4/Factory | Build established: Skirmisher 8107 | -4/Factory | Entered Armory 8108 | -4/Armory | Met VL-GR5, who suggested a friendly competition 8138 | -4/Armory | Lost 4 parts (1p2u1w) 8237 | -4/Armory | Lost 6 parts (1p1n2u2w) 8242 | -4/Armory | Found Fusion Bomb Launcher 8244 | -4/Armory | Found Fusion Bomb Launcher 8399 | -4/Armory | Discovered exit to Research (range 3) 8407 | -4/Armory | Entered Research 8407 | -3/Research | Evolved 2 slots: Propulsion x1, Utility x1 8408 | -3/Research | Identified exit to Research 8454 | -3/Research | Found Exp. Signal Interpreter 8500 | -3/Research | Spotted B-86 Titan 8544 | -3/Research | Core integrity fell below 50% 8604 | -3/Research | Core integrity fell below 20% 8628 | -3/Research | Destroyed by G-67 Veteran with Plasma Rifle Last Messages --------------- 08555_ System corrupted: Energy discharge (-36). 08573_ Component scanned: Tesla Bomb Launcher. [A new version of Cogmind is available, see F1 News page.] 08586_ Slammed into G-67 Veteran. 08587_ Slug penetrates Wall. [A new version of Cogmind is available, see F1 News page.] 08590_ Penetrated by Slug. 08590_ Slug penetrates Wall. 08592_ Slammed into H-77 Assassin. 08595_ Slug penetrates Wall. 08600_ Penetrated by Slug. 08600_ Slug penetrates Terminal. 08600_ Terminal disabled. 08603_ Penetrated by Slug. 08609_ Acquired Faulty Molecular Scythe. 08609_ Faulty integration triggers meltdown. 08609_ Exp. Signal Interpreter damaged (-1). 08610_ Penetrated by Slug. 08610_ Slug penetrates Wall. 08628_ Critical hit (Burn: +50). Map ----- +----------------------------------------------------+ | ??????????????????????????????????# #??????????? | | ??????????????????????????????????? #??????????? | | ??????????????????????????????????? #??????????? | | ??????????????????????????????????? ???????????? | | ????????????????????????????????? # ???????????? | | ?????????????????????????? ""??? + ???????????? | | ?????????????????????#?? # ???????????? | | ?????????????????????# ## "#####??????? | | ?????????????????????# ## " #??????? | | ?????????????????????# """""" ## + #??????? | | ?? ??????????????????# """""" ## # #??????? | | ?? +?????????????????# """""" ?# # #??????? | | ???# ????????????????? ???# #? #??????? | | ???# ?????????????????? ?????# #?####??????? | | ???# ###################+######## ############# | | ???# | | ???# | | ???# ^ | | ???# | | ???????#######/####### T# ###############+####### | | ??????????# #?#### #?????????# #?? | | ??????????# #????# #?????????# #?? | | ?####?????# #????# #?????????# #?? | | ?????# #????# #?????????# #?? | | ?????# #????# #?????????# !!! #?? | | ????# #????#@ #?????????# ! #?? | | =!! ????# #????# #?????????# !! #?# | | =!! ?????# #????# #?????????# #?# | | !! ?????# #???## #####################?# | | ###########+##### !# #??????????# | | gg " #??????????# | | + """" #??????????# | | ############+####### ; """" #???######## | | #??????# #??###### """"" #???#] # | | ???????# #???????# """" #???# # | | " "######### #???????# #???# # | | " + #???????# #???# # | | ########## #??????##+"##+#####???# # | | #????????# #??#+### #???????# # | | #????????#####+##??# #???????###+#### | | % #????????????# #???# #???????# ## | | ############## ##### ######### | | | | ############ | | ### #??????????# ## | | ??# #??????????###+###? | | ??# ^ #??????????? ?? | | ??##############################????????? | | ????????????????????????????????????????# ! | | ????????????????????????????????????????# | +----------------------------------------------------+ Best States ------------- Heat Dissipation 46 Energy Generation 33 Energy Capacity 575 Matter Stores 300 Matter Capacity 300 Sight Range 21 Robot Scan Range 16 Terrain Scan Range 16 Terrain Scan Density 10 Jamming Range 14 Cloak Strength 2 Armor Coverage 80 Resistance: KI 25 Evasion (%) 61 Targeting Accuracy 8 Core Analysis 6 Matter Filtering 30 Particle Charging 15 Item Schematics ----------------- Assault Drone Bay | -5/Zhirov | Free Exp. Heat Sink | -5/Zhirov | Free Exp. Optical Array | -5/Zhirov | Free Imp. Arc Thrower | -5/Zhirov | Free Robot Schematics ------------------ None Fabricated ------------ Nothing Repaired ---------- Nothing Studied --------- Myomer Leg | -4/Factory | Hacked Hardcell Cannon | -4/Factory | Hacked Alien Tech Used ----------------- Integrated Reactor Transdimensional Reconstructor Achievements -------------- Mistaken Identity Oh No You Don't! Sprinter Challenges ------------ None Game ------ Seed TowerAblativeNullifier Manual? 0 Play Time 02:10:20 Cumulative 34.7 hours Start 2026.02.07 @ 14:33:26 End 2026.03.06 @ 06:32:47 Sessions 5 Manual Loads 0 Difficulty Rogue Special Mode None Game No. 43 Rogue 24 Adventurer 0 Explorer 19 Win Type - Total 1 Types 1/0/0/0/0/0/0/0/0/0 Lore% 30 Gallery% 30 Achievement% 25 Wizard Run 0 Options --------- Layout 0 ASCII 0 Keyboard 1 Movement Arrows Keybinds 0 Fullscreen 2 Font 12/Smallcaps Map View 76x50 Zoom Use 0% Tactical HUD 1 Map Filters NONE Filters NONE Steam X RUN: 8dff36fa-7180-421a-9df8-bd50cc099a31